[Event "Early-Titled-Tuesday-Blitz-February-13-2024"]
[Site "Chess.com"]
[Date "2024.02.13"]
[Round "7"]
[White "SashaKuzhilniy"]
[Black "ilqar_74"]
[Result "1-0"]
[WhiteElo "2607"]
[BlackElo "2798"]
[TimeControl "180+1"]
[EndTime "9:20:27 PST"]
[Termination "SashaKuzhilniy won on time"]

1. d4 {[%clk 0:03:00.9]} 1... Nf6 {[%clk 0:02:59.9]} 2. c4 {[%clk 0:03:00.8]}
2... e6 {[%clk 0:03:00.5]} 3. Nc3 {[%clk 0:03:00.4]} 3... d5 {[%clk 0:03:01.2]}
4. cxd5 {[%clk 0:02:57.8]} 4... exd5 {[%clk 0:03:02.1]} 5. Bg5 {[%clk
0:02:57.2]} 5... Bb4 {[%clk 0:03:02.8]} 6. e3 {[%clk 0:02:55.6]} 6... h6 {[%clk
0:03:02.9]} 7. Bxf6 {[%clk 0:02:54.6]} 7... Qxf6 {[%clk 0:03:03.8]} 8. Qa4+
{[%clk 0:02:54.4]} 8... Nc6 {[%clk 0:03:03.9]} 9. Nf3 {[%clk 0:02:53.9]} 9...
O-O {[%clk 0:03:03.7]} 10. Bd3 {[%clk 0:02:52]} 10... Bg4 {[%clk 0:03:02.8]} 11.
Nd2 {[%clk 0:02:48.9]} 11... Rfe8 {[%clk 0:02:45.3]} 12. O-O {[%clk 0:02:45]}
12... Qg5 {[%clk 0:02:39.6]} 13. Kh1 {[%clk 0:02:28.3]} 13... Bd6 {[%clk
0:02:35.8]} 14. Nb5 {[%clk 0:02:24.4]} 14... Re6 {[%clk 0:02:21.3]} 15. Nxd6
{[%clk 0:02:22.3]} 15... Rxd6 {[%clk 0:02:21.2]} 16. Rac1 {[%clk 0:02:15.8]}
16... a6 {[%clk 0:02:11]} 17. Nf3 {[%clk 0:02:07.9]} 17... Qh5 {[%clk
0:01:55.7]} 18. Ne5 {[%clk 0:02:06.3]} 18... Nxe5 {[%clk 0:01:45.4]} 19. dxe5
{[%clk 0:02:07.2]} 19... Qxe5 {[%clk 0:01:41.2]} 20. Qxg4 {[%clk 0:02:05.2]}
20... c6 {[%clk 0:01:26.5]} 21. Qf5 {[%clk 0:02:00.7]} 21... Qxf5 {[%clk
0:01:24.3]} 22. Bxf5 {[%clk 0:02:01.6]} 22... g6 {[%clk 0:01:24.5]} 23. Bd3
{[%clk 0:02:01.4]} 23... Re8 {[%clk 0:01:25.1]} 24. Rfe1 {[%clk 0:01:59.1]}
24... Kg7 {[%clk 0:01:24.7]} 25. Kg1 {[%clk 0:01:58.8]} 25... f5 {[%clk
0:01:25.3]} 26. Kf1 {[%clk 0:01:59]} 26... Kf6 {[%clk 0:01:25.7]} 27. b4 {[%clk
0:01:57.9]} 27... Rde6 {[%clk 0:01:25.8]} 28. a4 {[%clk 0:01:55.5]} 28... Rc8
{[%clk 0:01:25.2]} 29. Rc5 {[%clk 0:01:52.2]} 29... Rd8 {[%clk 0:01:25.1]} 30.
Rec1 {[%clk 0:01:48.8]} 30... d4 {[%clk 0:01:23.9]} 31. Bc4 {[%clk 0:01:47.2]}
31... Red6 {[%clk 0:01:22.1]} 32. exd4 {[%clk 0:01:43.7]} 32... Rxd4 {[%clk
0:01:19.2]} 33. b5 {[%clk 0:01:40.7]} 33... cxb5 {[%clk 0:00:25.5]} 34. axb5
{[%clk 0:01:41.6]} 34... a5 {[%clk 0:00:26]} 35. Be2 {[%clk 0:01:36]} 35... a4
{[%clk 0:00:24.3]} 36. g3 {[%clk 0:01:28.3]} 36... a3 {[%clk 0:00:23.6]} 37. Ra1
{[%clk 0:01:27.7]} 37... Ra4 {[%clk 0:00:23.2]} 38. Ra2 {[%clk 0:01:18.8]} 38...
Rdd4 {[%clk 0:00:20.7]} 39. Rc3 {[%clk 0:01:17.5]} 39... Rab4 {[%clk 0:00:04.4]}
40. Rcxa3 {[%clk 0:01:14.3]} 40... Rb1+ {[%clk 0:00:04.4]} 41. Kg2 {[%clk
0:01:13.8]} 41... g5 {[%clk 0:00:04.9]} 42. Rd3 {[%clk 0:01:09.6]} 42... Re4
{[%clk 0:00:03.8]} 43. Rd7 {[%clk 0:01:03.7]} 43... Re5 {[%clk 0:00:01.3]} 44.
Rxb7 {[%clk 0:01:00.8]} 44... Rc5 {[%clk 0:00:01.8]} 45. Rb6+ {[%clk 0:00:59.9]}
45... Kg7 {[%clk 0:00:01.5]} 46. Rc6 {[%clk 0:01:00]} 46... Re5 {[%clk
0:00:01.2]} 47. Ra7+ {[%clk 0:00:58.1]} 1-0

[Event "Early-Titled-Tuesday-Blitz-February-13-2024"]
[Site "Chess.com"]
[Date "2024.02.13"]
[Round "7"]
[White "maciek_92"]
[Black "mbachez"]
[Result "1-0"]
[WhiteElo "2823"]
[BlackElo "2630"]
[TimeControl "180+1"]
[EndTime "9:20:28 PST"]
[Termination "maciek_92 won on time"]

1. c4 {[%clk 0:03:00.9]} 1... e5 {[%clk 0:02:53.8]} 2. g3 {[%clk 0:03:00.3]}
2... Nf6 {[%clk 0:02:51.6]} 3. Nc3 {[%clk 0:03:00.3]} 3... Bc5 {[%clk
0:02:51.5]} 4. Bg2 {[%clk 0:02:57.1]} 4... O-O {[%clk 0:02:51.7]} 5. e3 {[%clk
0:02:56.9]} 5... d6 {[%clk 0:02:50.7]} 6. Nge2 {[%clk 0:02:57.4]} 6... c6 {[%clk
0:02:50.6]} 7. O-O {[%clk 0:02:57.8]} 7... Bb6 {[%clk 0:02:50.9]} 8. d4 {[%clk
0:02:56.3]} 8... Bc7 {[%clk 0:02:48.1]} 9. h3 {[%clk 0:02:46.7]} 9... Re8 {[%clk
0:02:47.1]} 10. e4 {[%clk 0:02:46.3]} 10... exd4 {[%clk 0:02:38.7]} 11. Nxd4
{[%clk 0:02:47.2]} 11... Na6 {[%clk 0:02:37.2]} 12. Re1 {[%clk 0:02:34]} 12...
Nc5 {[%clk 0:02:37.2]} 13. Qc2 {[%clk 0:02:31]} 13... a5 {[%clk 0:02:36.5]} 14.
b3 {[%clk 0:02:26.3]} 14... d5 {[%clk 0:02:32.9]} 15. cxd5 {[%clk 0:02:13.8]}
15... cxd5 {[%clk 0:02:32.5]} 16. Bg5 {[%clk 0:02:14.3]} 16... dxe4 {[%clk
0:02:28.7]} 17. Rad1 {[%clk 0:02:03.4]} 17... Nd3 {[%clk 0:02:22.4]} 18. Rxe4
{[%clk 0:02:02.9]} 18... Nb4 {[%clk 0:02:13.4]} 19. Bxf6 {[%clk 0:01:44.3]}
19... gxf6 {[%clk 0:02:03.8]} 20. Qd2 {[%clk 0:01:30.1]} 20... Be5 {[%clk
0:01:57.8]} 21. Qh6 {[%clk 0:01:29]} 21... f5 {[%clk 0:01:18.9]} 22. Nxf5 {[%clk
0:01:08.6]} 22... Qc7 {[%clk 0:00:12.8]} 23. Qg5+ {[%clk 0:00:41.7]} 23... Kf8
{[%clk 0:00:11.3]} 24. Qh6+ {[%clk 0:00:28.4]} 24... Kg8 {[%clk 0:00:10.5]} 25.
Nb5 {[%clk 0:00:16.8]} 25... Qc5 {[%clk 0:00:05.4]} 26. Qg5+ {[%clk 0:00:14.3]}
26... Kf8 {[%clk 0:00:04.6]} 27. Qh6+ {[%clk 0:00:14.5]} 27... Kg8 {[%clk
0:00:04.2]} 28. Nbd6 {[%clk 0:00:14]} 28... Bxf5 {[%clk 0:00:01.9]} 29. Nxf5
{[%clk 0:00:12.7]} 1-0

[Event "Early-Titled-Tuesday-Blitz-February-13-2024"]
[Site "Chess.com"]
[Date "2024.02.13"]
[Round "7"]
[White "AlmasRakhmatullaev"]
[Black "FoxOnTheRun97"]
[Result "1-0"]
[WhiteElo "2870"]
[BlackElo "2659"]
[TimeControl "180+1"]
[EndTime "9:20:29 PST"]
[Termination "AlmasRakhmatullaev won by checkmate"]

1. e4 {[%clk 0:03:00.9]} 1... c6 {[%clk 0:03:00.3]} 2. d4 {[%clk 0:03:00.5]}
2... d5 {[%clk 0:03:00.9]} 3. exd5 {[%clk 0:03:01.4]} 3... cxd5 {[%clk
0:03:01.8]} 4. c4 {[%clk 0:03:02.1]} 4... Nf6 {[%clk 0:03:01.3]} 5. Nc3 {[%clk
0:03:02.7]} 5... g6 {[%clk 0:03:00.3]} 6. c5 {[%clk 0:03:02.5]} 6... Bg7 {[%clk
0:02:56.8]} 7. Nf3 {[%clk 0:03:03.1]} 7... O-O {[%clk 0:02:56.3]} 8. Bd3 {[%clk
0:02:57.9]} 8... Nc6 {[%clk 0:02:53]} 9. h3 {[%clk 0:02:56.2]} 9... Bf5 {[%clk
0:02:45.1]} 10. O-O {[%clk 0:02:51]} 10... Ne4 {[%clk 0:02:37.9]} 11. Ne2 {[%clk
0:02:46]} 11... Qd7 {[%clk 0:02:29.8]} 12. Be3 {[%clk 0:02:38.9]} 12... f6
{[%clk 0:02:15.1]} 13. a3 {[%clk 0:02:31]} 13... e5 {[%clk 0:02:11.4]} 14. b4
{[%clk 0:02:29]} 14... a6 {[%clk 0:01:47.5]} 15. Rb1 {[%clk 0:02:20.6]} 15...
Kh8 {[%clk 0:01:45.1]} 16. a4 {[%clk 0:02:19.5]} 16... h5 {[%clk 0:01:05.5]} 17.
b5 {[%clk 0:02:14.2]} 17... axb5 {[%clk 0:01:04.9]} 18. axb5 {[%clk 0:02:15.1]}
18... Ne7 {[%clk 0:01:05.1]} 19. Nh4 {[%clk 0:02:01.3]} 19... Bxh3 {[%clk
0:00:59.9]} 20. gxh3 {[%clk 0:01:56.3]} 20... Qxh3 {[%clk 0:01:00.8]} 21. Ng2
{[%clk 0:01:54.9]} 21... exd4 {[%clk 0:00:31.6]} 22. Nef4 {[%clk 0:01:42.7]}
22... Qc8 {[%clk 0:00:19.8]} 23. Bxe4 {[%clk 0:01:34.6]} 23... dxe4 {[%clk
0:00:17.1]} 24. Bxd4 {[%clk 0:01:33.2]} 24... Qf5 {[%clk 0:00:14.9]} 25. c6
{[%clk 0:01:24.4]} 25... bxc6 {[%clk 0:00:14.9]} 26. b6 {[%clk 0:01:24.7]} 26...
Rad8 {[%clk 0:00:14.7]} 27. b7 {[%clk 0:01:18]} 27... c5 {[%clk 0:00:14.9]} 28.
Qb3 {[%clk 0:01:06.9]} 28... cxd4 {[%clk 0:00:14.1]} 29. Ne6 {[%clk 0:01:07.4]}
29... Qg4 {[%clk 0:00:10.3]} 30. Nxd8 {[%clk 0:01:01.9]} 30... Rxd8 {[%clk
0:00:10.2]} 31. b8=Q {[%clk 0:00:58.8]} 31... Rxb8 {[%clk 0:00:10]} 32. Qxb8+
{[%clk 0:00:59.7]} 32... Kh7 {[%clk 0:00:10.6]} 33. Qg3 {[%clk 0:01:00.2]} 33...
Qe6 {[%clk 0:00:10.6]} 34. Nf4 {[%clk 0:00:57.3]} 34... Qf7 {[%clk 0:00:10.2]}
35. Rb7 {[%clk 0:00:56.5]} 35... g5 {[%clk 0:00:09.5]} 36. Nxh5 {[%clk
0:00:50.1]} 36... d3 {[%clk 0:00:05.6]} 37. Nxg7 {[%clk 0:00:48.8]} 37... Qxg7
{[%clk 0:00:05.4]} 38. Qd6 {[%clk 0:00:47.3]} 38... Kg6 {[%clk 0:00:04.5]} 39.
Rxe7 {[%clk 0:00:46.8]} 39... Qf8 {[%clk 0:00:04.6]} 40. Qe6 {[%clk 0:00:45.7]}
40... Kh5 {[%clk 0:00:02.3]} 41. Qh3+ {[%clk 0:00:44.1]} 41... Kg6 {[%clk
0:00:01.8]} 42. Qh7# {[%clk 0:00:45]} 1-0

[Event "Early-Titled-Tuesday-Blitz-February-13-2024"]
[Site "Chess.com"]
[Date "2024.02.13"]
[Round "7"]
[White "omer1997"]
[Black "KbzasDavid16"]
[Result "0-1"]
[WhiteElo "2410"]
[BlackElo "2556"]
[TimeControl "180+1"]
[EndTime "9:20:29 PST"]
[Termination "KbzasDavid16 won on time"]

1. e4 {[%clk 0:02:59]} 1... c5 {[%clk 0:02:59.7]} 2. Nf3 {[%clk 0:02:58.9]} 2...
d6 {[%clk 0:03:00.3]} 3. d4 {[%clk 0:02:56.7]} 3... cxd4 {[%clk 0:03:01.2]} 4.
Nxd4 {[%clk 0:02:57.4]} 4... Nf6 {[%clk 0:03:01.7]} 5. Nc3 {[%clk 0:02:57.7]}
5... a6 {[%clk 0:03:02.1]} 6. Be3 {[%clk 0:02:57.9]} 6... e5 {[%clk 0:03:02.2]}
7. Nf3 {[%clk 0:02:58.4]} 7... Be7 {[%clk 0:03:00.2]} 8. Bc4 {[%clk 0:02:58.1]}
8... O-O {[%clk 0:02:58.3]} 9. O-O {[%clk 0:02:55.7]} 9... Be6 {[%clk
0:02:54.7]} 10. Bb3 {[%clk 0:02:55.6]} 10... Nc6 {[%clk 0:02:48.9]} 11. Bg5
{[%clk 0:02:51.7]} 11... b5 {[%clk 0:02:43.9]} 12. Bxf6 {[%clk 0:02:22.3]} 12...
Bxf6 {[%clk 0:02:42.6]} 13. Nd5 {[%clk 0:02:23]} 13... Ne7 {[%clk 0:02:15.2]}
14. Nxf6+ {[%clk 0:02:18.5]} 14... gxf6 {[%clk 0:02:16.1]} 15. Qd2 {[%clk
0:02:12.4]} 15... d5 {[%clk 0:01:49.3]} 16. exd5 {[%clk 0:01:27.5]} 16... Nxd5
{[%clk 0:01:45.9]} 17. Qh6 {[%clk 0:01:26.7]} 17... Nf4 {[%clk 0:01:31.9]} 18.
Nh4 {[%clk 0:00:53.6]} 18... Qe7 {[%clk 0:00:44.6]} 19. Rae1 {[%clk 0:00:50.9]}
19... Kh8 {[%clk 0:00:27.6]} 20. Re3 {[%clk 0:00:48.2]} 20... Rg8 {[%clk
0:00:26]} 21. Rfe1 {[%clk 0:00:40.2]} 21... Rg5 {[%clk 0:00:08.1]} 22. Rg3
{[%clk 0:00:26]} 22... Rag8 {[%clk 0:00:04.1]} 23. Rxg5 {[%clk 0:00:09.1]} 23...
Rxg5 {[%clk 0:00:03]} 24. Bxe6 {[%clk 0:00:05.5]} 24... fxe6 {[%clk 0:00:03.9]}
25. g3 {[%clk 0:00:01.8]} 25... Rh5 {[%clk 0:00:02.7]} 26. Ng6+ {[%clk
0:00:01.1]} 26... Kg8 {[%clk 0:00:01.7]} 0-1

[Event "Early-Titled-Tuesday-Blitz-February-13-2024"]
[Site "Chess.com"]
[Date "2024.02.13"]
[Round "7"]
[White "Alexchess1984"]
[Black "RaugintaBulba"]
[Result "0-1"]
[WhiteElo "2624"]
[BlackElo "2436"]
[TimeControl "180+1"]
[EndTime "9:20:29 PST"]
[Termination "RaugintaBulba won on time"]

1. e4 {[%clk 0:03:00.9]} 1... b6 {[%clk 0:02:59.3]} 2. d4 {[%clk 0:02:59.6]}
2... Bb7 {[%clk 0:02:59.1]} 3. Nc3 {[%clk 0:03:00.5]} 3... e6 {[%clk 0:02:59.4]}
4. Nf3 {[%clk 0:02:57.7]} 4... c5 {[%clk 0:02:56]} 5. d5 {[%clk 0:02:56.3]} 5...
exd5 {[%clk 0:02:50.8]} 6. exd5 {[%clk 0:02:57.2]} 6... d6 {[%clk 0:02:51.5]} 7.
Bb5+ {[%clk 0:02:55.8]} 7... Nd7 {[%clk 0:02:51.2]} 8. O-O {[%clk 0:02:55.1]}
8... Be7 {[%clk 0:02:51.4]} 9. Re1 {[%clk 0:02:51.3]} 9... a6 {[%clk 0:02:48.6]}
10. Bf1 {[%clk 0:02:48.3]} 10... b5 {[%clk 0:02:36.8]} 11. Bf4 {[%clk
0:02:44.7]} 11... Qc7 {[%clk 0:02:30.9]} 12. Bxb5 {[%clk 0:02:02.6]} 12... axb5
{[%clk 0:02:06.7]} 13. Nxb5 {[%clk 0:02:03.5]} 13... Qb6 {[%clk 0:02:04.2]} 14.
Nxd6+ {[%clk 0:02:02.6]} 14... Kf8 {[%clk 0:02:01.6]} 15. Nf5 {[%clk 0:01:58.3]}
15... Qf6 {[%clk 0:01:57.3]} 16. g4 {[%clk 0:00:59.1]} 16... g6 {[%clk
0:01:55.1]} 17. Bg5 {[%clk 0:00:55.9]} 17... gxf5 {[%clk 0:01:50.3]} 18. Bxf6
{[%clk 0:00:55.3]} 18... Ngxf6 {[%clk 0:01:51.2]} 19. d6 {[%clk 0:00:48.9]}
19... Bd8 {[%clk 0:01:48.8]} 20. g5 {[%clk 0:00:34.5]} 20... Rg8 {[%clk
0:01:47]} 21. h4 {[%clk 0:00:32.9]} 21... h6 {[%clk 0:01:44.4]} 22. Ne5 {[%clk
0:00:29.1]} 22... Nxe5 {[%clk 0:01:42.7]} 23. Rxe5 {[%clk 0:00:28.7]} 23... hxg5
{[%clk 0:01:41]} 24. h5 {[%clk 0:00:24.5]} 24... Ra4 {[%clk 0:01:07.1]} 25. f3
{[%clk 0:00:18.1]} 25... g4 {[%clk 0:01:04.7]} 26. f4 {[%clk 0:00:07.6]} 26...
Bf3 {[%clk 0:00:43.4]} 27. Qd2 {[%clk 0:00:06.2]} 27... Ne4 {[%clk 0:00:42]} 28.
Qe3 {[%clk 0:00:05.5]} 28... Rd4 {[%clk 0:00:35.5]} 29. c3 {[%clk 0:00:04.7]}
29... Rd2 {[%clk 0:00:29]} 30. Kf1 {[%clk 0:00:04.3]} 30... Rh2 {[%clk
0:00:16.3]} 31. Rxe4 {[%clk 0:00:02.7]} 31... fxe4 {[%clk 0:00:12.1]} 0-1

[Event "Early-Titled-Tuesday-Blitz-February-13-2024"]
[Site "Chess.com"]
[Date "2024.02.13"]
[Round "7"]
[White "yaguigor"]
[Black "FredddieCroderg"]
[Result "1-0"]
[WhiteElo "2671"]
[BlackElo "2322"]
[TimeControl "180+1"]
[EndTime "9:20:29 PST"]
[Termination "yaguigor won by resignation"]

1. Nf3 {[%clk 0:03:00.9]} 1... d6 {[%clk 0:02:59.4]} 2. e4 {[%clk 0:03:00.2]}
2... Bg4 {[%clk 0:02:57.8]} 3. d4 {[%clk 0:02:55.8]} 3... Qc8 {[%clk 0:02:56.8]}
4. Nc3 {[%clk 0:02:54.6]} 4... Nc6 {[%clk 0:02:56.6]} 5. Be3 {[%clk 0:02:47]}
5... e5 {[%clk 0:02:53.8]} 6. d5 {[%clk 0:02:35.9]} 6... Bxf3 {[%clk 0:02:49.2]}
7. gxf3 {[%clk 0:02:25]} 7... Nce7 {[%clk 0:02:47.7]} 8. h4 {[%clk 0:02:24.5]}
8... f5 {[%clk 0:02:46.5]} 9. Bh3 {[%clk 0:02:23.6]} 9... Nf6 {[%clk 0:02:43.2]}
10. f4 {[%clk 0:02:21.5]} 10... exf4 {[%clk 0:02:40.2]} 11. Bxf4 {[%clk
0:02:20.8]} 11... g6 {[%clk 0:02:38.6]} 12. Qe2 {[%clk 0:02:06.4]} 12... Bg7
{[%clk 0:02:30.8]} 13. exf5 {[%clk 0:02:05.3]} 13... O-O {[%clk 0:02:27.3]} 14.
fxg6 {[%clk 0:02:04.1]} 14... Qd8 {[%clk 0:02:06.6]} 15. gxh7+ {[%clk
0:01:58.3]} 15... Kh8 {[%clk 0:02:04.2]} 16. Bg5 {[%clk 0:01:53.1]} 16... Qe8
{[%clk 0:01:42.6]} 17. O-O-O {[%clk 0:01:48.9]} 17... Ng6 {[%clk 0:01:40.4]} 18.
Qxe8 {[%clk 0:01:46.2]} 18... Raxe8 {[%clk 0:01:40.2]} 19. Be6 {[%clk
0:01:44.1]} 19... Nxh7 {[%clk 0:01:34.8]} 20. Ne4 {[%clk 0:01:35.5]} 20... Ne5
{[%clk 0:01:29.7]} 21. Rh3 {[%clk 0:01:21.6]} 21... Nf3 {[%clk 0:01:25.3]} 22.
c3 {[%clk 0:01:14.5]} 22... Be5 {[%clk 0:01:16]} 23. Rd3 {[%clk 0:01:11]} 23...
Ne1 {[%clk 0:01:07.1]} 24. Rde3 {[%clk 0:01:06.3]} 24... Ng2 {[%clk 0:01:04.2]}
25. Ref3 {[%clk 0:01:06.3]} 25... Nf4 {[%clk 0:00:58]} 26. Bxf4 {[%clk
0:01:02.7]} 26... Bxf4+ {[%clk 0:00:57.8]} 27. Kc2 {[%clk 0:01:00.9]} 27... Be5
{[%clk 0:00:53]} 28. Rxf8+ {[%clk 0:00:59.1]} 28... Rxf8 {[%clk 0:00:52.1]} 29.
Kd3 {[%clk 0:00:58.1]} 29... Nf6 {[%clk 0:00:49.4]} 30. Ng5 {[%clk 0:00:56]}
30... Ng4 {[%clk 0:00:46.1]} 31. Rf3 {[%clk 0:00:51.8]} 31... Rxf3+ {[%clk
0:00:40.9]} 32. Nxf3 {[%clk 0:00:50.8]} 32... Nxf2+ {[%clk 0:00:40.9]} 33. Ke2
{[%clk 0:00:49.1]} 33... Ne4 {[%clk 0:00:40.5]} 34. Nxe5 {[%clk 0:00:48.5]}
34... dxe5 {[%clk 0:00:39.2]} 35. Ke3 {[%clk 0:00:45.8]} 35... Nc5 {[%clk
0:00:35.5]} 36. b4 {[%clk 0:00:40.9]} 36... Na4 {[%clk 0:00:34.7]} 37. c4 {[%clk
0:00:37.2]} 37... Nc3 {[%clk 0:00:34.6]} 38. a3 {[%clk 0:00:35.6]} 38... Kg7
{[%clk 0:00:31.5]} 39. Bf5 {[%clk 0:00:34.9]} 39... Kf6 {[%clk 0:00:29.6]} 40.
Bc2 {[%clk 0:00:34.7]} 40... b5 {[%clk 0:00:20.5]} 41. Kd2 {[%clk 0:00:33.4]}
41... Na2 {[%clk 0:00:16.2]} 42. Bb3 {[%clk 0:00:32.9]} 1-0

[Event "Early-Titled-Tuesday-Blitz-February-13-2024"]
[Site "Chess.com"]
[Date "2024.02.13"]
[Round "7"]
[White "Chess4always"]
[Black "kekic76"]
[Result "1-0"]
[WhiteElo "1993"]
[BlackElo "2317"]
[TimeControl "180+1"]
[EndTime "9:20:29 PST"]
[Termination "Chess4always won by resignation"]

1. d4 {[%clk 0:03:00.9]} 1... d5 {[%clk 0:03:00]} 2. Nf3 {[%clk 0:03:01.5]} 2...
Nf6 {[%clk 0:02:59.6]} 3. Bf4 {[%clk 0:03:02.1]} 3... Bf5 {[%clk 0:02:56.4]} 4.
e3 {[%clk 0:03:02.2]} 4... e6 {[%clk 0:02:56.5]} 5. Ne5 {[%clk 0:03:02.9]} 5...
Bd6 {[%clk 0:02:54.9]} 6. g4 {[%clk 0:03:03.4]} 6... Bxe5 {[%clk 0:02:34.2]} 7.
gxf5 {[%clk 0:02:48.6]} 7... Bxf4 {[%clk 0:02:33.2]} 8. exf4 {[%clk 0:02:49.5]}
8... exf5 {[%clk 0:02:31.5]} 9. c3 {[%clk 0:02:41.9]} 9... O-O {[%clk
0:02:29.8]} 10. Be2 {[%clk 0:02:41]} 10... Ne4 {[%clk 0:02:29.7]} 11. Nd2 {[%clk
0:02:40.7]} 11... Qh4 {[%clk 0:02:27.4]} 12. Nxe4 {[%clk 0:02:37.3]} 12... fxe4
{[%clk 0:02:28.3]} 13. Qd2 {[%clk 0:02:36.8]} 13... Nc6 {[%clk 0:02:24.4]} 14.
Qe3 {[%clk 0:02:35.9]} 14... Ne7 {[%clk 0:02:20.9]} 15. Qg3 {[%clk 0:02:34.6]}
15... Qxg3 {[%clk 0:02:19.6]} 16. hxg3 {[%clk 0:02:35.5]} 16... g6 {[%clk
0:02:18.2]} 17. O-O-O {[%clk 0:02:36]} 17... Kg7 {[%clk 0:02:10.4]} 18. Rh2
{[%clk 0:02:33.3]} 18... h5 {[%clk 0:02:08.3]} 19. Kd2 {[%clk 0:02:33.6]} 19...
c6 {[%clk 0:02:06.7]} 20. g4 {[%clk 0:02:25.6]} 20... hxg4 {[%clk 0:02:03.8]}
21. Bxg4 {[%clk 0:02:26.5]} 21... f5 {[%clk 0:02:03.9]} 22. Be2 {[%clk
0:02:24.8]} 22... Rh8 {[%clk 0:02:04.2]} 23. Rdh1 {[%clk 0:02:25.4]} 23... Rxh2
{[%clk 0:02:03.6]} 24. Rxh2 {[%clk 0:02:26.3]} 24... Rh8 {[%clk 0:02:02.1]} 25.
Rg2 {[%clk 0:02:22.3]} 25... Kf6 {[%clk 0:02:01.6]} 26. c4 {[%clk 0:02:19.1]}
26... Rh4 {[%clk 0:01:58.6]} 27. Ke3 {[%clk 0:02:17.4]} 27... Rh3+ {[%clk
0:01:55.7]} 28. Kd2 {[%clk 0:02:16.7]} 28... Nc8 {[%clk 0:01:49.6]} 29. c5
{[%clk 0:02:16.5]} 29... b6 {[%clk 0:01:44.6]} 30. cxb6 {[%clk 0:02:15]} 30...
axb6 {[%clk 0:01:43.4]} 31. Ba6 {[%clk 0:02:13.3]} 31... Nd6 {[%clk 0:01:42.2]}
32. Bf1 {[%clk 0:02:08.4]} 32... Rf3 {[%clk 0:01:31.1]} 33. Rh2 {[%clk
0:01:56.3]} 33... e3+ {[%clk 0:01:23.6]} 34. Ke2 {[%clk 0:01:45.4]} 34... Rxf2+
{[%clk 0:01:18.2]} 35. Rxf2 {[%clk 0:01:45.7]} 35... exf2 {[%clk 0:01:18.3]} 36.
Kxf2 {[%clk 0:01:46.6]} 36... g5 {[%clk 0:01:17.1]} 37. fxg5+ {[%clk 0:01:44.5]}
37... Kxg5 {[%clk 0:01:18]} 38. Bd3 {[%clk 0:01:36.3]} 38... Ne4+ {[%clk
0:01:14.7]} 39. Ke3 {[%clk 0:01:32.6]} 39... f4+ {[%clk 0:01:10.8]} 40. Kf3
{[%clk 0:01:30.4]} 40... Ng3 {[%clk 0:01:05]} 41. b4 {[%clk 0:01:27.6]} 41...
Nf5 {[%clk 0:01:04.6]} 42. Bxf5 {[%clk 0:01:23.5]} 42... Kxf5 {[%clk 0:01:05.5]}
43. a4 {[%clk 0:01:24.1]} 43... Ke6 {[%clk 0:00:09.8]} 44. Kxf4 {[%clk
0:01:22.8]} 44... Kd6 {[%clk 0:00:10]} 45. a5 {[%clk 0:01:18.3]} 45... bxa5
{[%clk 0:00:09.7]} 46. bxa5 {[%clk 0:01:19.2]} 46... Kc7 {[%clk 0:00:05]} 47.
Ke5 {[%clk 0:01:18.9]} 47... Kd7 {[%clk 0:00:01.6]} 48. a6 {[%clk 0:01:09.9]}
48... Kc7 {[%clk 0:00:02.1]} 49. a7 {[%clk 0:01:10.2]} 49... Kb7 {[%clk
0:00:02.4]} 50. Kd6 {[%clk 0:01:10.8]} 50... Kxa7 {[%clk 0:00:02.7]} 51. Kxc6
{[%clk 0:01:11.3]} 51... Kb8 {[%clk 0:00:03.3]} 52. Kxd5 {[%clk 0:01:11.4]}
52... Kc8 {[%clk 0:00:03]} 53. Kc6 {[%clk 0:01:11.5]} 53... Kd8 {[%clk
0:00:02.8]} 54. Kd6 {[%clk 0:01:12.1]} 54... Kc8 {[%clk 0:00:02.1]} 55. Ke7
{[%clk 0:01:12.2]} 55... Kc7 {[%clk 0:00:02.8]} 56. d5 {[%clk 0:01:13.1]} 56...
Kc8 {[%clk 0:00:02.7]} 57. d6 {[%clk 0:01:14]} 57... Kb7 {[%clk 0:00:03]} 58. d7
{[%clk 0:01:14.9]} 58... Kc7 {[%clk 0:00:03.9]} 59. d8=Q+ {[%clk 0:01:15.8]}
59... Kc6 {[%clk 0:00:04.3]} 60. Qd6+ {[%clk 0:01:16.4]} 1-0

[Event "Early-Titled-Tuesday-Blitz-February-13-2024"]
[Site "Chess.com"]
[Date "2024.02.13"]
[Round "7"]
[White "Hovik_Hayrapetyan"]
[Black "GM_dmitrij"]
[Result "0-1"]
[WhiteElo "2896"]
[BlackElo "3054"]
[TimeControl "180+1"]
[EndTime "9:20:30 PST"]
[Termination "GM_dmitrij won on time"]

1. d4 {[%clk 0:02:58.9]} 1... d5 {[%clk 0:02:58.3]} 2. c4 {[%clk 0:02:58.9]}
2... e6 {[%clk 0:02:58.8]} 3. Nc3 {[%clk 0:02:59.1]} 3... Nf6 {[%clk 0:02:57.4]}
4. Nf3 {[%clk 0:02:59.3]} 4... Nbd7 {[%clk 0:02:56.6]} 5. Bf4 {[%clk 0:02:47.9]}
5... dxc4 {[%clk 0:02:53.7]} 6. e3 {[%clk 0:02:37]} 6... b5 {[%clk 0:02:51]} 7.
Nxb5 {[%clk 0:01:58.1]} 7... Bb4+ {[%clk 0:02:50.1]} 8. Nc3 {[%clk 0:01:56]}
8... Nd5 {[%clk 0:02:49.7]} 9. Rc1 {[%clk 0:01:42.8]} 9... N7b6 {[%clk
0:02:39.8]} 10. Bg3 {[%clk 0:01:29.4]} 10... Bb7 {[%clk 0:02:35.6]} 11. Be2
{[%clk 0:01:28.3]} 11... O-O {[%clk 0:02:30.8]} 12. O-O {[%clk 0:01:28.2]} 12...
Nxc3 {[%clk 0:02:30.2]} 13. bxc3 {[%clk 0:01:29.1]} 13... Ba3 {[%clk 0:02:30.7]}
14. Rb1 {[%clk 0:01:29.4]} 14... Be4 {[%clk 0:02:30]} 15. Rb5 {[%clk 0:01:12.4]}
15... c6 {[%clk 0:02:11.3]} 16. Ra5 {[%clk 0:01:05.9]} 16... Be7 {[%clk
0:01:57.9]} 17. Qc1 {[%clk 0:00:57.4]} 17... Bd5 {[%clk 0:01:26.8]} 18. Nd2
{[%clk 0:00:47.9]} 18... c5 {[%clk 0:01:26.2]} 19. dxc5 {[%clk 0:00:39.5]} 19...
Nd7 {[%clk 0:01:23.9]} 20. Qa3 {[%clk 0:00:16.8]} 20... Nxc5 {[%clk 0:01:15.2]}
21. Rxa7 {[%clk 0:00:16.6]} 21... Qb6 {[%clk 0:00:38.8]} 22. Rxa8 {[%clk
0:00:13.9]} 22... Rxa8 {[%clk 0:00:39.7]} 23. Qc1 {[%clk 0:00:13.7]} 23... Rxa2
{[%clk 0:00:36.4]} 24. Nxc4 {[%clk 0:00:14]} 24... Qb7 {[%clk 0:00:31.8]} 25.
Nd6 {[%clk 0:00:08.6]} 25... Bxd6 {[%clk 0:00:26.4]} 26. Bxd6 {[%clk 0:00:09.5]}
26... Ne4 {[%clk 0:00:27]} 27. Bb4 {[%clk 0:00:04.9]} 27... Rxe2 {[%clk
0:00:25.9]} 28. c4 {[%clk 0:00:03.4]} 28... Qxb4 {[%clk 0:00:20.4]} 29. cxd5
{[%clk 0:00:03.8]} 29... exd5 {[%clk 0:00:21.3]} 30. Qc8+ {[%clk 0:00:02.4]}
30... Qf8 {[%clk 0:00:21.4]} 31. Qg4 {[%clk 0:00:02]} 31... Rd2 {[%clk
0:00:17.8]} 32. h4 {[%clk 0:00:02.3]} 32... Rc2 {[%clk 0:00:13.8]} 0-1